[Event "*** Titled Tuesday Blitz"]
[Site "Chess.com"]
[Date "2021.02.02"]
[Round "5"]
[White "bsnsun"]
[Black "Michaelson_11"]
[Result "0-1"]
[WhiteElo "2465"]
[BlackElo "2287"]
[TimeControl "180+1"]
[EndTime "11:00:08 PST"]
[Termination "Michaelson_11 won by resignation"]

1. e4 {[%clk 0:02:53.9]} 1... c5 {[%clk 0:02:58]} 2. Nf3 {[%clk 0:02:54.2]} 2...
Nc6 {[%clk 0:02:58.9]} 3. d4 {[%clk 0:02:53.6]} 3... cxd4 {[%clk 0:02:59.8]} 4.
Nxd4 {[%clk 0:02:54.5]} 4... g6 {[%clk 0:03:00.1]} 5. c4 {[%clk 0:02:52.7]} 5...
Nf6 {[%clk 0:02:59.4]} 6. Be3 {[%clk 0:02:53.2]} 6... Bg7 {[%clk 0:02:59.3]} 7.
Nc3 {[%clk 0:02:52.2]} 7... O-O {[%clk 0:02:57.2]} 8. Be2 {[%clk 0:02:50.8]}
8... d6 {[%clk 0:02:54.2]} 9. O-O {[%clk 0:02:48.7]} 9... Nxd4 {[%clk
0:02:50.6]} 10. Bxd4 {[%clk 0:02:48.2]} 10... Bd7 {[%clk 0:02:50.8]} 11. f3
{[%clk 0:02:44.9]} 11... Bc6 {[%clk 0:02:49]} 12. Qd2 {[%clk 0:02:39.9]} 12...
a5 {[%clk 0:02:48.7]} 13. Rfd1 {[%clk 0:02:38.8]} 13... Nd7 {[%clk 0:02:45.8]}
14. Bf2 {[%clk 0:02:38.6]} 14... Nc5 {[%clk 0:02:25.3]} 15. Rac1 {[%clk
0:02:36.3]} 15... a4 {[%clk 0:02:20.4]} 16. Bf1 {[%clk 0:02:32.9]} 16... Qa5
{[%clk 0:02:14.9]} 17. Nd5 {[%clk 0:02:32.4]} 17... Bxd5 {[%clk 0:02:08.7]} 18.
cxd5 {[%clk 0:02:18.3]} 18... Qxd2 {[%clk 0:02:05.1]} 19. Rxd2 {[%clk
0:02:19.2]} 19... Bh6 {[%clk 0:02:04.7]} 20. Rxc5 {[%clk 0:02:11]} 20... Bxd2
{[%clk 0:01:56.3]} 21. Rc7 {[%clk 0:02:09.7]} 21... a3 {[%clk 0:01:52.1]} 22.
bxa3 {[%clk 0:02:03.9]} 22... Rxa3 {[%clk 0:01:45.3]} 23. Rxe7 {[%clk
0:02:03.7]} 23... Rxa2 {[%clk 0:01:37.7]} 24. Rxb7 {[%clk 0:02:03.1]} 24... Rc8
{[%clk 0:01:26.3]} 25. Bd4 {[%clk 0:02:00.2]} 25... Bc3 {[%clk 0:01:19]} 26. Be3
{[%clk 0:01:42.4]} 26... Bf6 {[%clk 0:01:00]} 27. Rb6 {[%clk 0:01:31]} 27... Rc3
{[%clk 0:00:53.2]} 28. Bf2 {[%clk 0:01:19.3]} 28... Be5 {[%clk 0:00:47.9]} 29.
f4 {[%clk 0:01:14.6]} 29... Bxf4 {[%clk 0:00:42.5]} 30. Rb8+ {[%clk 0:01:14.5]}
30... Kg7 {[%clk 0:00:37.3]} 31. Bd4+ {[%clk 0:01:15]} 31... Be5 {[%clk
0:00:30.7]} 32. Bxc3 {[%clk 0:01:15.9]} 32... Bxc3 {[%clk 0:00:31.6]} 33. g3
{[%clk 0:01:13.5]} 33... Bd4+ {[%clk 0:00:31.2]} 34. Kh1 {[%clk 0:01:13.8]}
34... Rf2 {[%clk 0:00:26.4]} 35. Bb5 {[%clk 0:01:10.8]} 35... Rb2 {[%clk
0:00:20.7]} 36. Rb7 {[%clk 0:01:10.5]} 36... Be5 {[%clk 0:00:14.2]} 37. Kg1
{[%clk 0:01:10]} 37... Bd4+ {[%clk 0:00:12.6]} 38. Kf1 {[%clk 0:01:07.4]} 38...
Kf6 {[%clk 0:00:11.9]} 39. Ke1 {[%clk 0:01:03.8]} 39... Rxh2 {[%clk 0:00:09.7]}
40. Be8 {[%clk 0:01:03.3]} 40... Kg5 {[%clk 0:00:04.9]} 41. Rxf7 {[%clk
0:01:02.3]} 41... Rg2 {[%clk 0:00:05.1]} 42. Rxh7 {[%clk 0:01:01.5]} 42... Rxg3
{[%clk 0:00:05.4]} 43. Rg7 {[%clk 0:01:00.7]} 43... Kf6 {[%clk 0:00:03.6]} 44.
Rg8 {[%clk 0:01:00.4]} 44... Kg5 {[%clk 0:00:03.7]} 45. Rxg6+ {[%clk 0:00:57.7]}
45... Kf4 {[%clk 0:00:04.1]} 46. Re6 {[%clk 0:00:52.7]} 46... Be5 {[%clk
0:00:03.5]} 47. Bg6 {[%clk 0:00:52.9]} 47... Rg2 {[%clk 0:00:03.8]} 48. Kd1
{[%clk 0:00:51.8]} 48... Ra2 {[%clk 0:00:03.7]} 49. Re8 {[%clk 0:00:50.5]} 49...
Rg2 {[%clk 0:00:03.6]} 50. Kc1 {[%clk 0:00:49.7]} 50... Ke3 {[%clk 0:00:03.8]}
51. Rf8 {[%clk 0:00:43.4]} 51... Rxg6 {[%clk 0:00:03.2]} 52. Ra8 {[%clk
0:00:36.6]} 52... Kxe4 {[%clk 0:00:03.5]} 53. Ra5 {[%clk 0:00:37.2]} 53... Rg2
{[%clk 0:00:03.3]} 54. Kd1 {[%clk 0:00:37.5]} 54... Kd4 {[%clk 0:00:03.4]} 55.
Kc1 {[%clk 0:00:36.3]} 55... Kc4 {[%clk 0:00:03.8]} 56. Kd1 {[%clk 0:00:36.6]}
56... Bc3 {[%clk 0:00:04]} 57. Ra6 {[%clk 0:00:35.5]} 57... Kxd5 {[%clk
0:00:04.3]} 58. Ra8 {[%clk 0:00:35.3]} 58... Be5 {[%clk 0:00:03.8]} 59. Ra5+
{[%clk 0:00:35.3]} 59... Ke6 {[%clk 0:00:03.8]} 60. Ra6 {[%clk 0:00:34.9]} 60...
Kf5 {[%clk 0:00:03.7]} 61. Ke1 {[%clk 0:00:35.4]} 61... d5 {[%clk 0:00:03.7]}
62. Kf1 {[%clk 0:00:35.9]} 62... Rb2 {[%clk 0:00:03.8]} 63. Ra5 {[%clk
0:00:36.4]} 63... Ke4 {[%clk 0:00:03.8]} 64. Ra4+ {[%clk 0:00:33.4]} 64... d4
{[%clk 0:00:04.1]} 65. Ke1 {[%clk 0:00:32.5]} 65... Ke3 {[%clk 0:00:04.3]} 66.
Kd1 {[%clk 0:00:29.3]} 66... d3 {[%clk 0:00:04.7]} 67. Ra1 {[%clk 0:00:29.5]}
67... Rh2 {[%clk 0:00:04.2]} 0-1

[Event "*** Titled Tuesday Blitz"]
[Site "Chess.com"]
[Date "2021.02.02"]
[Round "5"]
[White "sara_khm"]
[Black "vinniethepooh"]
[Result "1/2-1/2"]
[WhiteElo "2498"]
[BlackElo "2726"]
[TimeControl "180+1"]
[EndTime "11:00:09 PST"]
[Termination "Game drawn - insufficient material"]

1. d4 {[%clk 0:03:00.9]} 1... Nf6 {[%clk 0:02:59.9]} 2. Nf3 {[%clk 0:03:00.2]}
2... d5 {[%clk 0:02:59.9]} 3. c4 {[%clk 0:03:00.3]} 3... e6 {[%clk 0:03:00.4]}
4. Nc3 {[%clk 0:02:59.8]} 4... c6 {[%clk 0:03:00.6]} 5. e3 {[%clk 0:02:59.6]}
5... Nbd7 {[%clk 0:03:00.1]} 6. b3 {[%clk 0:02:55.5]} 6... Bb4 {[%clk
0:02:56.4]} 7. Bd2 {[%clk 0:02:50.4]} 7... Bxc3 {[%clk 0:02:50.2]} 8. Bxc3
{[%clk 0:02:50.1]} 8... Ne4 {[%clk 0:02:51.1]} 9. Qc2 {[%clk 0:02:45.3]} 9...
Nxc3 {[%clk 0:02:38.9]} 10. Qxc3 {[%clk 0:02:44.7]} 10... O-O {[%clk 0:02:39.1]}
11. Bd3 {[%clk 0:02:44.3]} 11... Re8 {[%clk 0:02:37]} 12. O-O {[%clk 0:02:44.2]}
12... b6 {[%clk 0:02:37.3]} 13. e4 {[%clk 0:02:44.1]} 13... Bb7 {[%clk
0:02:14.5]} 14. cxd5 {[%clk 0:02:29.5]} 14... exd5 {[%clk 0:02:11.9]} 15. e5
{[%clk 0:02:29]} 15... c5 {[%clk 0:02:12]} 16. Rae1 {[%clk 0:02:23.8]} 16... Rc8
{[%clk 0:02:06.7]} 17. Qd2 {[%clk 0:02:19.5]} 17... c4 {[%clk 0:01:56.8]} 18.
Bf5 {[%clk 0:02:14]} 18... cxb3 {[%clk 0:01:48.4]} 19. axb3 {[%clk 0:02:08.1]}
19... Ba6 {[%clk 0:01:48.4]} 20. Bd3 {[%clk 0:01:12.1]} 20... Bxd3 {[%clk
0:01:48.2]} 21. Qxd3 {[%clk 0:01:12.5]} 21... Nf8 {[%clk 0:01:49.1]} 22. Nd2
{[%clk 0:01:07.9]} 22... Qc7 {[%clk 0:01:33.6]} 23. Re3 {[%clk 0:01:07.3]} 23...
Qc2 {[%clk 0:01:27.8]} 24. Qe2 {[%clk 0:01:06.8]} 24... Ne6 {[%clk 0:01:26.1]}
25. Nf3 {[%clk 0:00:56.5]} 25... Qxe2 {[%clk 0:01:24.9]} 26. Rxe2 {[%clk
0:00:56.8]} 26... Rc3 {[%clk 0:01:25.8]} 27. Re3 {[%clk 0:00:52.7]} 27... Rec8
{[%clk 0:01:21.2]} 28. Rfe1 {[%clk 0:00:52.6]} 28... g5 {[%clk 0:01:19.6]} 29.
h3 {[%clk 0:00:50.4]} 29... h5 {[%clk 0:01:18.9]} 30. Rxc3 {[%clk 0:00:47.1]}
30... Rxc3 {[%clk 0:01:18.8]} 31. Re3 {[%clk 0:00:47.7]} 31... Rc1+ {[%clk
0:01:18.3]} 32. Kh2 {[%clk 0:00:47.7]} 32... g4 {[%clk 0:01:17.1]} 33. hxg4
{[%clk 0:00:46.4]} 33... hxg4 {[%clk 0:01:18]} 34. Nh4 {[%clk 0:00:45.9]} 34...
Nxd4 {[%clk 0:01:17.9]} 35. Rd3 {[%clk 0:00:46.2]} 35... Nc6 {[%clk 0:00:58.4]}
36. Rxd5 {[%clk 0:00:46.1]} 36... Rc5 {[%clk 0:00:59]} 37. Rd7 {[%clk 0:00:27]}
37... Rxe5 {[%clk 0:00:59]} 38. Rc7 {[%clk 0:00:26.6]} 38... Rc5 {[%clk
0:00:44]} 39. Kg3 {[%clk 0:00:26.5]} 39... a5 {[%clk 0:00:44.3]} 40. Nf5 {[%clk
0:00:19.9]} 40... Rxf5 {[%clk 0:00:13]} 41. Rxc6 {[%clk 0:00:20]} 41... Rb5
{[%clk 0:00:13.9]} 42. Rc3 {[%clk 0:00:20]} 42... f5 {[%clk 0:00:14.2]} 43. Kf4
{[%clk 0:00:19.3]} 43... Kf7 {[%clk 0:00:14.7]} 44. Kg5 {[%clk 0:00:19.1]} 44...
Ke6 {[%clk 0:00:15.1]} 45. Re3+ {[%clk 0:00:16.7]} 45... Kd6 {[%clk 0:00:15.4]}
46. f4 {[%clk 0:00:16.6]} 46... gxf3 {[%clk 0:00:13.5]} 47. gxf3 {[%clk
0:00:16.9]} 47... Rd5 {[%clk 0:00:06.9]} 48. f4 {[%clk 0:00:16.6]} 48... b5
{[%clk 0:00:05.2]} 49. Kf6 {[%clk 0:00:16.5]} 49... a4 {[%clk 0:00:03.9]} 50.
bxa4 {[%clk 0:00:16.2]} 50... bxa4 {[%clk 0:00:04.8]} 51. Ra3 {[%clk 0:00:16.3]}
51... Ra5 {[%clk 0:00:05.4]} 52. Rd3+ {[%clk 0:00:14.8]} 52... Kc5 {[%clk
0:00:04.7]} 53. Kxf5 {[%clk 0:00:13.6]} 53... Kc4+ {[%clk 0:00:05.3]} 54. Ke4
{[%clk 0:00:13.9]} 54... a3 {[%clk 0:00:06.2]} 55. Rd1 {[%clk 0:00:13.5]} 55...
Kc3 {[%clk 0:00:05]} 56. f5 {[%clk 0:00:13.4]} 56... a2 {[%clk 0:00:03.6]} 57.
f6 {[%clk 0:00:11.4]} 57... a1=Q {[%clk 0:00:02.5]} 58. Rxa1 {[%clk 0:00:11.4]}
58... Rxa1 {[%clk 0:00:03.4]} 59. Ke5 {[%clk 0:00:11.9]} 59... Re1+ {[%clk
0:00:03.2]} 60. Kd6 {[%clk 0:00:12.1]} 60... Kd4 {[%clk 0:00:03.4]} 61. f7
{[%clk 0:00:11.7]} 61... Rf1 {[%clk 0:00:03.9]} 62. Ke7 {[%clk 0:00:12.1]} 62...
Re1+ {[%clk 0:00:04.1]} 63. Kd7 {[%clk 0:00:12.3]} 63... Rf1 {[%clk 0:00:04.4]}
64. Ke7 {[%clk 0:00:12.6]} 64... Rxf7+ {[%clk 0:00:04.3]} 65. Kxf7 {[%clk
0:00:12.8]} 1/2-1/2

[Event "*** Titled Tuesday Blitz"]
[Site "Chess.com"]
[Date "2021.02.02"]
[Round "5"]
[White "ShahMatKanal"]
[Black "VitaliyBernadskiy"]
[Result "0-1"]
[WhiteElo "2483"]
[BlackElo "2727"]
[TimeControl "180+1"]
[EndTime "11:00:09 PST"]
[Termination "VitaliyBernadskiy won by resignation"]

1. d4 {[%clk 0:03:00.9]} 1... Nf6 {[%clk 0:02:59]} 2. Nf3 {[%clk 0:03:00.7]}
2... g6 {[%clk 0:02:59.2]} 3. c4 {[%clk 0:03:00.9]} 3... Bg7 {[%clk 0:02:59.5]}
4. Nc3 {[%clk 0:03:01.5]} 4... O-O {[%clk 0:02:59.6]} 5. e4 {[%clk 0:03:01.3]}
5... d6 {[%clk 0:03:00.1]} 6. Be2 {[%clk 0:03:01.4]} 6... e5 {[%clk 0:03:00.3]}
7. d5 {[%clk 0:03:02]} 7... Nbd7 {[%clk 0:02:59]} 8. O-O {[%clk 0:03:02]} 8...
Nc5 {[%clk 0:02:59.2]} 9. Qc2 {[%clk 0:03:02.4]} 9... a5 {[%clk 0:02:59.7]} 10.
Bg5 {[%clk 0:03:02.8]} 10... h6 {[%clk 0:02:58.8]} 11. Be3 {[%clk 0:03:02.8]}
11... Nh7 {[%clk 0:02:54.6]} 12. Nd2 {[%clk 0:02:43.7]} 12... f5 {[%clk
0:02:54.2]} 13. exf5 {[%clk 0:02:44.6]} 13... gxf5 {[%clk 0:02:47.4]} 14. f4
{[%clk 0:02:44.4]} 14... e4 {[%clk 0:02:46.7]} 15. Nb3 {[%clk 0:02:41.5]} 15...
Qe7 {[%clk 0:02:34.6]} 16. Rad1 {[%clk 0:02:21.6]} 16... Bd7 {[%clk 0:02:31.6]}
17. Nxc5 {[%clk 0:02:03.3]} 17... dxc5 {[%clk 0:02:30.9]} 18. d6 {[%clk
0:02:04.2]} 18... cxd6 {[%clk 0:02:30]} 19. Nd5 {[%clk 0:01:21.6]} 19... Qd8
{[%clk 0:02:29.3]} 20. Rd2 {[%clk 0:01:00.6]} 20... Rf7 {[%clk 0:01:59]} 21. Bh5
{[%clk 0:00:56.3]} 21... Rf8 {[%clk 0:01:58.8]} 22. Rfd1 {[%clk 0:00:55.8]}
22... Be6 {[%clk 0:01:56.9]} 23. Nb6 {[%clk 0:00:38.3]} 23... Qxb6 {[%clk
0:01:39.1]} 24. Rxd6 {[%clk 0:00:38.4]} 24... Qxb2 {[%clk 0:01:39.6]} 25. Qxb2
{[%clk 0:00:38.7]} 25... Bxb2 {[%clk 0:01:40.4]} 26. Rxe6 {[%clk 0:00:39.5]}
26... Rac8 {[%clk 0:01:16.9]} 27. Rg6+ {[%clk 0:00:32.4]} 27... Kh8 {[%clk
0:01:11.8]} 28. Rxh6 {[%clk 0:00:32.3]} 28... Rf6 {[%clk 0:01:08]} 29. Rxf6
{[%clk 0:00:28.1]} 29... Nxf6 {[%clk 0:01:07.5]} 30. Bg6 {[%clk 0:00:29]} 30...
Ng4 {[%clk 0:00:59.6]} 31. Rb1 {[%clk 0:00:18]} 31... Nxe3 {[%clk 0:00:54.4]}
32. Rxb2 {[%clk 0:00:17.8]} 32... Rg8 {[%clk 0:00:55]} 33. Bf7 {[%clk
0:00:15.5]} 33... Rg7 {[%clk 0:00:52.4]} 34. Be6 {[%clk 0:00:12.1]} 34... Re7
{[%clk 0:00:51.9]} 35. Bc8 {[%clk 0:00:09.4]} 35... Nxc4 {[%clk 0:00:51]} 36.
Rxb7 {[%clk 0:00:09.2]} 36... Rxb7 {[%clk 0:00:47]} 37. Bxb7 {[%clk 0:00:10.1]}
37... Nd6 {[%clk 0:00:47.5]} 38. Bd5 {[%clk 0:00:09.5]} 38... c4 {[%clk
0:00:46.9]} 39. Kf2 {[%clk 0:00:09.2]} 39... c3 {[%clk 0:00:47.8]} 40. Ke2
{[%clk 0:00:07.8]} 40... Nb5 {[%clk 0:00:45.7]} 41. Bc4 {[%clk 0:00:04.1]} 41...
Nd4+ {[%clk 0:00:44.2]} 42. Ke3 {[%clk 0:00:04.7]} 42... c2 {[%clk 0:00:44.4]}
43. Kd2 {[%clk 0:00:04.6]} 43... e3+ {[%clk 0:00:44.8]} 44. Kc1 {[%clk 0:00:04]}
44... Kg7 {[%clk 0:00:39]} 45. g3 {[%clk 0:00:03.4]} 45... Kf6 {[%clk
0:00:38.6]} 46. Bd3 {[%clk 0:00:03.7]} 46... a4 {[%clk 0:00:23.7]} 47. Bxc2
{[%clk 0:00:03.8]} 47... e2 {[%clk 0:00:24.1]} 48. Kd2 {[%clk 0:00:03.8]} 48...
Nxc2 {[%clk 0:00:24.5]} 49. Kxe2 {[%clk 0:00:04.3]} 49... Nb4 {[%clk 0:00:25.4]}
50. a3 {[%clk 0:00:03.4]} 50... Nc2 {[%clk 0:00:25.6]} 51. Kd2 {[%clk
0:00:03.6]} 51... Nxa3 {[%clk 0:00:26.1]} 52. Kc3 {[%clk 0:00:04.5]} 52... Nb5+
{[%clk 0:00:26.3]} 53. Kb4 {[%clk 0:00:04.5]} 53... a3 {[%clk 0:00:26]} 54. Kb3
{[%clk 0:00:05.2]} 54... Ke6 {[%clk 0:00:13]} 55. h3 {[%clk 0:00:05.5]} 55...
Kd5 {[%clk 0:00:13.4]} 56. g4 {[%clk 0:00:05.8]} 56... Ke4 {[%clk 0:00:13.9]}
57. gxf5 {[%clk 0:00:05.1]} 57... Kxf5 {[%clk 0:00:13.8]} 58. h4 {[%clk
0:00:05.6]} 58... Kxf4 {[%clk 0:00:14.1]} 59. h5 {[%clk 0:00:06.2]} 59... Kg5
{[%clk 0:00:14.5]} 60. h6 {[%clk 0:00:07.1]} 60... Kxh6 {[%clk 0:00:14.9]} 61.
Ka2 {[%clk 0:00:07.5]} 61... Kg5 {[%clk 0:00:15.8]} 62. Kb3 {[%clk 0:00:07.6]}
62... Kf5 {[%clk 0:00:16.7]} 63. Kc2 {[%clk 0:00:07.7]} 63... Ke4 {[%clk
0:00:17.6]} 64. Kb3 {[%clk 0:00:08.2]} 64... Kd4 {[%clk 0:00:17.9]} 65. Ka2
{[%clk 0:00:07.5]} 65... Kc4 {[%clk 0:00:18.3]} 66. Ka1 {[%clk 0:00:07.1]} 66...
Kb3 {[%clk 0:00:19.1]} 67. Kb1 {[%clk 0:00:07.5]} 67... Nd4 {[%clk 0:00:19.7]}
68. Ka1 {[%clk 0:00:07.4]} 68... Nc2+ {[%clk 0:00:19.8]} 69. Kb1 {[%clk
0:00:07.9]} 69... a2+ {[%clk 0:00:20.3]} 0-1

[Event "*** Titled Tuesday Blitz"]
[Site "Chess.com"]
[Date "2021.02.02"]
[Round "5"]
[White "c_r_e_e_p_e_r"]
[Black "DiogenesSinopeus"]
[Result "1/2-1/2"]
[WhiteElo "2370"]
[BlackElo "2510"]
[TimeControl "180+1"]
[EndTime "11:00:09 PST"]
[Termination "Game drawn by repetition"]

1. e4 {[%clk 0:03:00.9]} 1... e5 {[%clk 0:03:00.1]} 2. Nc3 {[%clk 0:03:00.9]}
2... Nc6 {[%clk 0:03:00.1]} 3. f4 {[%clk 0:03:01.4]} 3... Bc5 {[%clk 0:02:58.2]}
4. Nf3 {[%clk 0:02:58]} 4... d6 {[%clk 0:02:57.7]} 5. Bc4 {[%clk 0:02:54.3]}
5... Nf6 {[%clk 0:02:57.7]} 6. d3 {[%clk 0:02:51.7]} 6... Bg4 {[%clk 0:02:57.5]}
7. h3 {[%clk 0:02:51.5]} 7... Bxf3 {[%clk 0:02:57.2]} 8. Qxf3 {[%clk 0:02:50.6]}
8... exf4 {[%clk 0:02:57.8]} 9. Bxf4 {[%clk 0:02:49.1]} 9... Nd4 {[%clk
0:02:58]} 10. Qd1 {[%clk 0:02:48.8]} 10... c6 {[%clk 0:02:56.3]} 11. Bb3 {[%clk
0:02:46.6]} 11... d5 {[%clk 0:02:48.6]} 12. e5 {[%clk 0:02:45.8]} 12... Nd7
{[%clk 0:02:37.9]} 13. Qg4 {[%clk 0:02:38.7]} 13... Ne6 {[%clk 0:02:14.4]} 14.
O-O-O {[%clk 0:02:23.6]} 14... a5 {[%clk 0:02:14.6]} 15. a4 {[%clk 0:02:13.7]}
15... Qb6 {[%clk 0:02:02.9]} 16. Kb1 {[%clk 0:01:51.4]} 16... O-O-O {[%clk
0:02:02.4]} 17. Ne2 {[%clk 0:01:50.3]} 17... Kb8 {[%clk 0:01:57.3]} 18. d4
{[%clk 0:01:41.1]} 18... Be7 {[%clk 0:01:51.4]} 19. Bd2 {[%clk 0:01:36.4]} 19...
Ka8 {[%clk 0:01:50.8]} 20. Bc3 {[%clk 0:01:22.2]} 20... Qa6 {[%clk 0:01:49.2]}
21. Nf4 {[%clk 0:01:17.6]} 21... Ng5 {[%clk 0:01:33.9]} 22. Rhe1 {[%clk
0:01:01.5]} 22... Nf8 {[%clk 0:01:28.2]} 23. h4 {[%clk 0:00:59.5]} 23... Nge6
{[%clk 0:01:27.2]} 24. Nd3 {[%clk 0:00:44]} 24... h5 {[%clk 0:01:23.8]} 25. Qf3
{[%clk 0:00:43.5]} 25... Bxh4 {[%clk 0:01:15.5]} 26. g3 {[%clk 0:00:41.6]} 26...
Ng5 {[%clk 0:00:59.8]} 27. Qf4 {[%clk 0:00:36.9]} 27... Nfe6 {[%clk 0:00:52.3]}
28. Qxh4 {[%clk 0:00:37]} 28... Nf3 {[%clk 0:00:52.8]} 29. Qe7 {[%clk
0:00:31.7]} 29... Nxe1 {[%clk 0:00:51.7]} 30. Rxe1 {[%clk 0:00:32.6]} 30... g5
{[%clk 0:00:51.6]} 31. Qxf7 {[%clk 0:00:31.7]} 31... Rde8 {[%clk 0:00:50.3]} 32.
Nc5 {[%clk 0:00:25.1]} 32... Nxc5 {[%clk 0:00:48.7]} 33. dxc5 {[%clk 0:00:26]}
33... h4 {[%clk 0:00:48.1]} 34. gxh4 {[%clk 0:00:21.3]} 34... gxh4 {[%clk
0:00:47.7]} 35. e6 {[%clk 0:00:21.7]} 35... Rhf8 {[%clk 0:00:47.9]} 36. Qh5
{[%clk 0:00:15.5]} 36... Ka7 {[%clk 0:00:31.3]} 37. e7 {[%clk 0:00:15.3]} 37...
Rg8 {[%clk 0:00:23.3]} 38. Qxh4 {[%clk 0:00:15.2]} 38... Rg6 {[%clk 0:00:10.4]}
39. Bd4 {[%clk 0:00:13.1]} 39... Rgg8 {[%clk 0:00:06.1]} 40. Qf4 {[%clk
0:00:09.7]} 40... Ka8 {[%clk 0:00:04.8]} 41. Qd6 {[%clk 0:00:08.8]} 41... Qa7
{[%clk 0:00:04.6]} 42. Bxd5 {[%clk 0:00:07.2]} 42... cxd5 {[%clk 0:00:04.5]} 43.
Qxd5 {[%clk 0:00:07.3]} 43... Qb8 {[%clk 0:00:04.5]} 44. Be5 {[%clk 0:00:07]}
44... Qc8 {[%clk 0:00:04.6]} 45. Bd6 {[%clk 0:00:07.2]} 45... Qc6 {[%clk
0:00:05.2]} 46. Qe6 {[%clk 0:00:07.4]} 46... Ka7 {[%clk 0:00:05]} 47. b3 {[%clk
0:00:07.2]} 47... Ka8 {[%clk 0:00:04.7]} 48. Rf1 {[%clk 0:00:07.4]} 48... Qg2
{[%clk 0:00:02.4]} 49. Rf8 {[%clk 0:00:07.6]} 49... Rgxf8 {[%clk 0:00:02.2]} 50.
exf8=Q {[%clk 0:00:07.2]} 50... Rxf8 {[%clk 0:00:02.7]} 51. Bxf8 {[%clk
0:00:07.7]} 51... Qf1+ {[%clk 0:00:03.4]} 52. Kb2 {[%clk 0:00:07.7]} 52... Qxf8
{[%clk 0:00:04.3]} 53. Qd6 {[%clk 0:00:08.1]} 53... Qc8 {[%clk 0:00:04.4]} 54.
Qb6 {[%clk 0:00:06.7]} 54... Qh8+ {[%clk 0:00:04.7]} 55. Ka2 {[%clk 0:00:06.7]}
55... Qc8 {[%clk 0:00:05.6]} 56. Qxa5+ {[%clk 0:00:06.9]} 56... Kb8 {[%clk
0:00:06.2]} 57. Qb6 {[%clk 0:00:07.3]} 57... Qf5 {[%clk 0:00:06]} 58. c6 {[%clk
0:00:06.9]} 58... Qxc2+ {[%clk 0:00:06.2]} 59. Ka3 {[%clk 0:00:07.5]} 59... Qc1+
{[%clk 0:00:06.6]} 60. Kb4 {[%clk 0:00:07.9]} 60... Qd2+ {[%clk 0:00:06.4]} 61.
Kb5 {[%clk 0:00:07.4]} 61... Qd3+ {[%clk 0:00:06.7]} 62. Kb4 {[%clk 0:00:07.3]}
62... Qd2+ {[%clk 0:00:06.6]} 63. Kc4 {[%clk 0:00:06.9]} 63... Qe2+ {[%clk
0:00:06.2]} 64. Kd5 {[%clk 0:00:06.6]} 64... Qf3+ {[%clk 0:00:06]} 65. Kd6
{[%clk 0:00:05.2]} 65... Qf4+ {[%clk 0:00:05.3]} 66. Kd5 {[%clk 0:00:03.8]}
66... Qf3+ {[%clk 0:00:05.6]} 67. Kc4 {[%clk 0:00:02.8]} 67... Qe2+ {[%clk
0:00:05.7]} 68. Kb4 {[%clk 0:00:03]} 68... Qd2+ {[%clk 0:00:06.1]} 1/2-1/2